Cogmind - Beta 13 @@@ ROGUE MODE // 2024.04.14 @ 16:18:06 Player: Aleks Result: Destroyed by H-66 Slayer with Gauss Rifle Performance ------------- Evolutions (5) 2500 Regions Visited (13) 2600 Robots Destroyed (125) 625 Value Destroyed (3742) 3742 Prototype IDs (22) 440 Alien Tech Used (0) 0 Bonus (879) 879 TOTAL SCORE: 10786 Bonus ------- High Alert Combat Kills 44 Follower Combat Kills 235 Met Data Miner 300 Met Imprinter 300 Cogmind --------- Core Integrity 0/1000 Matter 296/300 Energy 20/100 System Corruption 2% Temperature Cool (0) Movement Core (200) Ox3 Location -5/Factory Parts ------- > --- POWER (2) -------- (None) > --- PROPULSION (6) --- (None) > --- UTILITY (7) ------ Medium Storage Unit Advanced Signal Interpreter System Shield > --- WEAPON (2) ------- (None) > --- INVENTORY (10) --- Light Angular Momentum Engine Nuclear Pulse Thruster Q-thruster Improved Matter Compressor (7) Authchip [Processor] Advanced Plasma Cannon Enhanced Nova Cannon Hypervelocity Coil Gun GAL Module Peak State ------------ > --- POWER ------------ Light Nuclear Core Micro Antimatter Reactor > --- PROPULSION ------- Cooled Gravmag System Improved Antigrav System Improved Antigrav System Improved Cesium-ion Thruster Improved Cesium-ion Thruster Field Propulsion Drive > --- UTILITY ---------- Advanced Heat Sink Advanced Signal Interpreter Improved Melee Analysis Suite Advanced Melee Analysis Suite Improved Focal Shield Hacking Suite Makeshift Hacking Suite > --- WEAPON ----------- Advanced Plasma Cannon Chainsword > --- INVENTORY -------- Authchip [Processor] Advanced Plasma Cannon KE Penetrator KE Penetrator GAL Module [Rating: 93] Favorites ----------- Power Light Nuclear Core Engine Light Ion Engine Power Core Light Nuclear Core Reactor Micro Antimatter Reactor Propulsion Armored Wheel Treads Light Treads Leg Aluminum Leg Wheel Armored Wheel Hover Unit Improved Antigrav System Flight Unit Improved Cesium-ion Thruster Utility Huge Storage Unit Device Advanced Heat Sink Storage Huge Storage Unit Processor Advanced Signal Interpreter Hackware Hacking Suite Protection Light Armor Plating Weapon Improved Light Cannon Energy Cannon Beam Cannon Ballistic Gun Heavy Assault Rifle Ballistic Cannon Improved Light Cannon Launcher Heavy Missile Launcher Impact Weapon Mace Slashing Weapon Chainsword Special Melee Weapon Improved Datajack Build | -11 -10 -9 -9 -7 -6 -6 -6 -6 -6 -5 -5 -5 -5 ------- Run | Yrd Mat Mat Min Zio Pro Fac Low Low Dat Pro Fac Was Fac Slots Evolved 10 | . . 2 . . . 6 . . . . 2 . . Power 1 | . . . . . . . . . . . 1 . . Propulsion 4 | . . 1 . . . 3 . . . . . . . Utility 5 | . . 1 . . . 3 . . . . 1 . . Weapon . | . . . . . . . . . . . . . . Parts Attached 172 | 6 18 13 12 9 7 41 1 3 . 1 41 1 19 Power 22 | 1 3 1 1 2 . 4 . 1 . 1 6 . 2 Engine 12 | 1 3 1 . 1 . 4 . 1 . . 1 . . Core 8 | . . . 1 1 . . . . . 1 4 . 1 Reactor 2 | . . . . . . . . . . . 1 . 1 Propulsion 55 | 2 6 3 2 2 1 17 . . . . 17 . 5 Treads 15 | 2 5 . . 2 . 6 . . . . . . . Leg 1 | . . . 1 . . . . . . . . . . Wheel 7 | . 1 3 1 . 1 1 . . . . . . . Hover 4 | . . . . . . . . . . . 4 . . Flight 28 | . . . . . . 10 . . . . 13 . 5 Utility 32 | 1 2 2 3 1 2 10 1 . . . 5 1 4 Device 7 | . . . . . . 2 . . . . 3 1 1 Storage 5 | 1 2 . . . . 1 . . . . 1 . . Processor 5 | . . 1 . . . 3 . . . . 1 . . Hackware 6 | . . . . . . 2 1 . . . . . 3 Protection 9 | . . 1 3 1 2 2 . . . . . . . Artifact . | . . . . . . . . . . . . . . Weapon 63 | 2 7 7 6 4 4 10 . 2 . . 13 . 8 Energy Gun . | . . . . . . . . . . . . . . Energy Cannon 16 | . 4 1 1 . . 1 . . . . 8 . 1 Ballistic Gun 10 | 2 1 1 . 2 . 2 . . . . 1 . 1 Ballistic Cannon 10 | . . 3 3 1 2 1 . . . . . . . Launcher 13 | . 2 2 2 . 1 3 . 1 . . . . 2 Special Weapon . | . . . . . . . . . . . . . . Impact Weapon 3 | . . . . . . . . . . . 1 . 2 Slashing Weapon 9 | . . . . . 1 2 . 1 . . 3 . 2 Piercing Weapon . | . . . . . . . . . . . . . . Special Melee Weapon 2 | . . . . 1 . 1 . . . . . . . Unidentified Prototypes 3 | . . . . . . 1 . . . . 1 . 1 Corrupted Parts 3 | . . . 3 . . . . . . . . . . System Corruption 10 | . . . 10 . . . . . . . . . . Parts Lost 51 | . 4 1 3 . 4 12 . 1 . 2 14 . 10 Power 11 | . 1 1 1 . . 1 . . . 1 5 . 1 Propulsion 21 | . 2 . 1 . . 6 . . . 1 7 . 4 Utility 11 | . . . 1 . 2 4 . . . . 1 . 3 Weapon 8 | . 1 . . . 2 1 . 1 . . 1 . 2 Highest Loss Streak 8 | . 4 1 2 . 4 4 . 1 . 2 7 . 8 To Critical Strikes 1 | . . . . . . . . . . . . . 1 Average Slot Usage (%) 91 | . 85 80 99 98 97 83 90 92 93 91 91 92 88 Engine 3 | . 12 10 5 . . 3 6 6 6 4 . 5 3 Core 5 | . . . 5 10 11 1 . . . 1 4 . 1 Treads 10 | . 21 11 11 11 11 18 . . . . . . . Wheel 12 | . 2 22 21 22 22 9 . . . . . . . Flight 8 | . . . . . . 6 33 33 33 31 27 29 27 Device 3 | . . . . . . 4 6 6 6 6 9 8 14 Storage 8 | . 19 11 11 11 11 5 . . . . 2 5 5 Processor 5 | . . 2 10 . . 5 20 20 20 20 17 18 7 Hackware 4 | . . . . . . 9 10 13 13 13 9 5 8 Protection 9 | . . 1 11 22 22 8 . . . . . . . Energy Cannon 1 | . 11 . . . . . . . . . 1 . . Ballistic Gun 5 | . 15 . 10 10 8 2 . . . . . . . Ballistic Cannon 5 | . . 19 10 8 7 2 . . . . . . . Slashing Weapon 2 | . . . . . 2 3 13 12 13 13 6 5 4 Naked Turns . | . . . . . . . . . . . . . . Heaviest Build 117 | 11 89 98 112 109 112 117 10 12 12 12 36 34 35 Greatest Support 112 | 40 40 26 24 24 24 112 37 37 37 37 37 36 38 Greatest Overweight (x) 9 | . 8 4 4 4 4 9 . . . . 1 . 3 Average Overweight (x) 1 | . 2 3 3 4 4 1 . . . . . . . Largest Inventory Capacity 25 | 8 25 25 25 25 25 25 5 5 5 5 10 10 10 Average Capacity 18 | 7 13 25 25 25 25 20 5 5 5 5 7 10 10 Most Carried 25 | 4 9 22 25 25 25 25 5 5 5 5 10 10 10 Average Carried 16 | 2 6 14 23 24 24 18 5 4 5 4 7 9 9 Final Capacity 25 | 8 25 25 25 25 25 5 5 5 5 5 10 10 10 Final Carried 25 | 3 9 19 22 25 22 5 5 5 5 4 10 10 9 Class Distribution -------------------- 59% | Mutant 15% | Hacker-Sprinter 9% | Sprinter 8% | Hacker-Mutant 4% | Derelict-Mutant Dominant Class ---------------- Mutant | -10/Materials Mutant | -9/Materials Mutant | -9/Mines Mutant | -7/Zion Mutant | -6/Proximity Caves Hacker-Mutant | -6/Factory Hacker-Sprinter | -6/Lower Caves Hacker-Sprinter | -6/Lower Caves Hacker-Sprinter | -6/Data Miner Hacker-Sprinter | -5/Proximity Caves Hacker-Sprinter | -5/Factory Sprinter | -5/Waste Hacker-Sprinter | -5/Factory Resources | -11 -10 -9 -9 -7 -6 -6 -6 -6 -6 -5 -5 -5 -5 ----------- Run | Yrd Mat Mat Min Zio Pro Fac Low Low Dat Pro Fac Was Fac Matter Collected 2944 | 205 404 302 360 150 219 722 10 25 . . 280 . 267 Remotely . | . . . . . . . . . . . . . . Salvage Created 4766 | . 631 302 418 25 296 1272 . 11 . 367 712 . 732 Parts 231 | . 36 20 20 . 8 46 . 1 . 3 48 . 49 Haulers Intercepted 10 | . 2 . . . . 4 . . . . 2 . 2 Recyclers Shooed . | . . . . . . . . . . . . . . Parts Field Recycled . | . . . . . . . . . . . . . . Retrieved Matter . | . . . . . . . . . . . . . . Parts Self-Destructed 28 | . . . . 3 20 . . 4 . 1 . . . Prevented . | . . . . . . . . . . . . . . Kills | -11 -10 -9 -9 -7 -6 -6 -6 -6 -6 -5 -5 -5 -5 ------- Run | Yrd Mat Mat Min Zio Pro Fac Low Low Dat Pro Fac Was Fac Combat Hostiles Destroyed 89 | . 13 14 9 . 6 19 . . . . 16 . 12 Melee 21 | . . . . . 3 5 . . . . 13 . . Guns 8 | . 5 . 3 . . . . . . . . . . Cannons 18 | . 3 7 5 . 1 . . . . . 2 . . AOE 40 | . 5 7 1 . 2 13 . . . . . . 12 Classes Destroyed 17 | . 5 1 3 . 1 4 . . . . 1 . 2 Worker 6 | . 1 2 . . . 2 . . . . . . 1 Builder 3 | . . . . . . 1 . . . . 1 . 1 Tunneler 1 | . . . 1 . . . . . . . . . . Hauler 10 | . 2 . . . . 4 . . . . 2 . 2 Recycler 6 | . 2 . 1 . . 2 . . . . . . 1 Minesweeper 1 | . . . . . 1 . . . . . . . . Operator 4 | . . . . . . . . . . . 1 . 3 Watcher 5 | . . . . . . 1 . . . . 1 . 3 Swarmer 33 | . 6 4 . . . 3 . . . . 15 . 5 Cutter 6 | . . . . . . . . . . . . . 6 Saboteur 1 | . . . . . . . . . . . . . 1 Grunt 37 | . 7 9 5 . 5 11 . . . . . . . Brawler 2 | . . . 1 . . 1 . . . . . . . Duelist 3 | . . . 2 . 1 . . . . . . . . Sentry 4 | . . 1 1 . . 2 . . . . . . . Hunter 1 | . . . . . . 1 . . . . . . . Programmer 2 | . . . . . . 1 . . . . 1 . . Best Kill Streak 8 | . 6 5 2 . 3 8 . . . . 5 . 8 Combat Bots Only 7 | . 5 4 2 . 3 7 . . . . 5 . 7 Max Kills in Single Turn 6 | . 2 2 2 . 2 2 . . . . 1 . 6 Gunslinging . | . . . . . . . . . . . . . . Exploded 5 | . 2 2 1 . 2 2 . . . . . . 5 Melee 1 | . . . . . 1 1 . . . . 1 . . Uniques/NPCs Destroyed . | . . . . . . . . . . . . . . Combat | -11 -10 -9 -9 -7 -6 -6 -6 -6 -6 -5 -5 -5 -5 -------- Run | Yrd Mat Mat Min Zio Pro Fac Low Low Dat Pro Fac Was Fac Hostile Shots Fired 838 | . 112 36 34 . 62 260 . 8 . 11 150 . 165 Missed 320 | . 27 7 6 . 13 111 . 4 . 5 54 . 93 Damage Taken 7659 | . 950 372 556 . 981 1908 . 57 . 100 1048 . 1687 Core 1814 | . 230 52 71 . 72 308 . 28 . 35 246 . 772 Absorbed by Shields 423 | . . . . . . 315 . . . . 108 . . Ignored by Resistances 346 | . . . . . 52 . . . . . 294 . . Core Remaining (%) 53 | 100 8 . . . 51 . . . . 56 . . . Volleys Fired 214 | . 62 33 23 3 15 40 . . . . 29 . 9 Largest 2 | . 2 2 2 2 2 2 . . . . 1 . 1 Hottest 120 | . 120 78 62 62 87 80 . . . . 98 . 98 Shots Fired 336 | . 111 59 43 6 24 55 . . . . 29 . 9 Gun 123 | . 77 . 21 3 6 15 . . . . . . 1 Cannon 177 | . 30 52 21 3 16 22 . . . . 29 . 4 Launcher 36 | . 4 7 1 . 2 18 . . . . . . 4 Special . | . . . . . . . . . . . . . . Kinetic 230 | . 77 52 42 6 22 30 . . . . . . 1 Thermal 68 | . 30 . . . . 7 . . . . 27 . 4 Explosive 32 | . 4 7 1 . 2 18 . . . . . . . Electromagnetic 6 | . . . . . . . . . . . 2 . 4 Robot Hit Streak 15 | . 7 15 10 2 5 5 . . . . 1 . 2 Robot Miss Streak 4 | . 3 2 3 1 4 2 . . . . 3 . 2 Penetration Max . | . . . . . . . . . . . . . . Secondary Targets . | . . . . . . . . . . . . . . Shots Hit Robots 314 | . 62 44 29 4 23 76 . 1 . 11 31 . 33 Core Hits 180 | . 26 19 14 1 16 54 . 1 . 4 18 . 27 Critical Kills 1 | . . . . . . . . . . . 1 . . Critical Parts Destroyed . | . . . . . . . . . . . . . . Critical Strikes 9 | . . 1 . . 1 4 . . . . 2 . 1 Meltdown 1 | . . . . . . . . . . . 1 . . Blast 1 | . . 1 . . . . . . . . . . . Sever 7 | . . . . . 1 4 . . . . 1 . 1 Melee Attacks 277 | . . . . 1 12 53 . 1 . 12 95 . 103 Impact 17 | . . . . . . . . . . . . . 17 Slashing 259 | . . . . . 12 53 . 1 . 12 95 . 86 Piercing . | . . . . . . . . . . . . . . Sneak Attacks 21 | . . . . 1 1 8 . . . . 3 . 8 Combat Hostiles . | . . . . . . . . . . . . . . Follow-up Attacks 10 | . . . . . . 1 . . . 2 3 . 4 Damage Inflicted 13902 | 2 966 1386 688 55 1016 4109 . 78 . 836 1430 . 3336 Guns 956 | . 466 . 249 33 74 126 . . . . . . 8 Cannons 2065 | . 298 820 278 22 235 331 . . . . 81 . . Explosions 4929 | . 195 566 161 . 343 1891 . . . . . . 1773 Melee 5930 | . . . . . 364 1748 . 78 . 836 1349 . 1555 Ramming 22 | 2 7 . . . . 13 . . . . . . . Kinetic 2516 | . 466 820 527 55 309 331 . . . . . . 8 Thermal 1269 | . 298 . . . . 260 . . . . 81 . 630 Explosive 3886 | . 195 566 161 . 343 1757 . . . . . . 864 Electromagnetic 279 | . . . . . . . . . . . . . 279 Impact 151 | . . . . . . . . . . . . . 151 Slashing 5779 | . . . . . 364 1748 . 78 . 836 1349 . 1404 Piercing . | . . . . . . . . . . . . . . Highest Corruption 10 | . . . 10 10 . 2 2 2 2 2 4 . 2 Average Corruption 2 | . . . 6 10 . 1 2 2 2 2 3 . 1 Corruption Purged 4 | . . . . . . . . . . . 4 . . Corruption Blocked . | . . . . . . . . . . . . . . Effects 24 | . . . . 3 . 10 2 1 . 2 5 . 1 Message Errors 5 | . . . . . . 2 . 1 . . 1 . 1 Matter Fused 4 | . . . . 1 . 2 . . . . 1 . . Heat Flow Errors 5 | . . . . . . 3 . . . 1 1 . . Energy Discharges 4 | . . . . 1 . . 1 . . 1 1 . . Parts Rejected 2 | . . . . . . 1 . . . . 1 . . Data Loss (minor) 3 | . . . . . . 2 1 . . . . . . Data Loss (major) 1 | . . . . 1 . . . . . . . . . Overload Shots . | . . . . . . . . . . . . . . Overflow Damage 1126 | . 17 2 . . 54 103 . . . 384 151 . 415 Projectiles . | . . . . . . . . . . . . . . Explosions 302 | . 17 2 . . . 55 . . . . . . 228 Melee 824 | . . . . . 54 48 . . . 384 151 . 187 Knockbacks 18 | . . 5 2 . 8 3 . . . . . . . Impact . | . . . . . . . . . . . . . . Kinetic 17 | . . 5 2 . 7 3 . . . . . . . Secondary 1 | . . . . . 1 . . . . . . . . Self-Inflicted Damage 496 | . 11 . . . . 221 . . . . . . 264 Shots 11 | . 1 . . . . 5 . . . . . . 5 Rammed 5 | 1 4 . . . . . . . . . . . . Targets Rammed 6 | 1 4 . . . . 1 . . . . . . . Kicked . | . . . . . . . . . . . . . . Crushed 1 | . . . . . . 1 . . . . . . . Highest Temperature 603 | . 603 72 54 63 369 318 3 3 . 266 160 . 120 Average Temperature 95 | . 192 27 18 33 173 95 2 3 . 64 56 . 54 Received Heat Transfer 1955 | . 429 213 111 . 405 587 . . . 18 66 . 126 Effects 17 | . 13 . . . 3 1 . . . . . . . Shutdowns 3 | . 2 . . . 1 . . . . . . . . Energy Bleed 2 | . 2 . . . . . . . . . . . . Interference 2 | . 2 . . . . . . . . . . . . Matter Decay 3 | . 1 . . . 1 1 . . . . . . . Short Circuit 1 | . 1 . . . . . . . . . . . . Damage (minor) 1 | . . . . . 1 . . . . . . . . Damage (major) 5 | . 5 . . . . . . . . . . . . Siege Activations . | . . . . . . . . . . . . . . Robots Corrupted . | . . . . . . . . . . . . . . Combat Hostiles . | . . . . . . . . . . . . . . Parts Fried . | . . . . . . . . . . . . . . Impact Corruptions 1 | . . . . . . . . . . . . . 1 Robots Melted 2 | . . . . . . 1 . . . . 1 . . Combat Hostiles 2 | . . . . . . 1 . . . . 1 . . Parts Melted 4 | . . . . . . 2 . . . . 1 . 1 Heat Transferred 1529 | . 629 . . . . 350 . . . . 150 . 400 Parts Sabotaged . | . . . . . . . . . . . . . . Parts Stolen . | . . . . . . . . . . . . . . Parts Stripped . | . . . . . . . . . . . . . . Power Chain Reactions . | . . . . . . . . . . . . . . Alert | -11 -10 -9 -9 -7 -6 -6 -6 -6 -6 -5 -5 -5 -5 ------- Run | Yrd Mat Mat Min Zio Pro Fac Low Low Dat Pro Fac Was Fac Peak Influence 653 | . 215 381 339 . . 647 . . . . 653 258 531 Initial 228 | . . 27 148 . . 34 . . . . 78 228 180 Average 226 | . 118 116 223 . . 259 . . . . 292 243 282 Maximum Alert Level 2 | . 1 1 1 . . 2 . . . . 2 1 2 Low Security (%) 44 | 100 73 85 52 . . 34 . . . . 27 . 18 Level 1 45 | . 26 14 47 . . 50 . . . . 49 100 74 Level 2 9 | . . . . . . 15 . . . . 22 . 6 Level 3 . | . . . . . . . . . . . . . . Level 4 . | . . . . . . . . . . . . . . Level 5 . | . . . . . . . . . . . . . . High Security . | . . . . . . . . . . . . . . Max Security . | . . . . . . . . . . . . . . Squads Dispatched 19 | . 2 1 1 . . 9 . . . . 3 . 3 Investigation 3 | . . 1 . . . 1 . . . . 1 . . Extermination 4 | . . . . . . 3 . . . . 1 . . Reinforcement 9 | . 2 . . . . 3 . . . . 1 . 3 Assault 1 | . . . 1 . . . . . . . . . . Garrison 2 | . . . . . . 2 . . . . . . . Intercept . | . . . . . . . . . . . . . . Searches Triggered 3 | . . . . . . 1 . . . . 1 . 1 Data Miner Redirects 1 | . . . . . . . . . . . . . 1 Construction Impeded 1 | . . . . . . 1 . . . . . . . Haulers Reinforced 2 | . . . . . . 2 . . . . . . . Active Scanning Responses . | . . . . . . . . . . . . . . Cargo Convoy Interrupts 2 | . . . . . . . . . . . 1 . 1 Stealth | -11 -10 -9 -9 -7 -6 -6 -6 -6 -6 -5 -5 -5 -5 --------- Run | Yrd Mat Mat Min Zio Pro Fac Low Low Dat Pro Fac Was Fac Distress Signals 10 | . 1 2 . . . 1 . . . . 3 . 3 Communications Jammed . | . . . . . . . . . . . . . . Distress Signals . | . . . . . . . . . . . . . . Times Spotted 275 | . 19 24 14 . 11 68 . 4 . 15 60 4 56 Peak Tracking Total 21 | . 4 5 4 . 4 14 . 3 . 16 14 4 21 Tactical Retreats 43 | . 1 3 1 . . 10 . 2 . 2 19 . 5 Traps | -11 -10 -9 -9 -7 -6 -6 -6 -6 -6 -5 -5 -5 -5 ------- Run | Yrd Mat Mat Min Zio Pro Fac Low Low Dat Pro Fac Was Fac Traps Triggered 12 | . 2 . 1 . . 2 . . . . 5 . 2 Indirectly 1 | . . . . . . . . . . . . . 1 Trap Hack Attempts . | . . . . . . . . . . . . . . Triggered . | . . . . . . . . . . . . . . Disarmed . | . . . . . . . . . . . . . . Reprogrammed . | . . . . . . . . . . . . . . Reused . | . . . . . . . . . . . . . . Traps Extracted . | . . . . . . . . . . . . . . Installed . | . . . . . . . . . . . . . . Triggered 6 | . . . . . . . . 2 . 1 2 . 1 Machines | -11 -10 -9 -9 -7 -6 -6 -6 -6 -6 -5 -5 -5 -5 ---------- Run | Yrd Mat Mat Min Zio Pro Fac Low Low Dat Pro Fac Was Fac Machines Disabled 15 | . 1 2 . . . 5 . . . . . . 7 Max in Single Turn 5 | . 1 2 . . . 2 . . . . . . 5 Garrison Access 5 | . . . . . . 2 . . . . 3 . . Machines Repaired . | . . . . . . . . . . . . . . Machines Dismantled . | . . . . . . . . . . . . . . Machines Sabotaged . | . . . . . . . . . . . . . . Overloaded Fab Kills . | . . . . . . . . . . . . . . Hacking | -11 -10 -9 -9 -7 -6 -6 -6 -6 -6 -5 -5 -5 -5 --------- Run | Yrd Mat Mat Min Zio Pro Fac Low Low Dat Pro Fac Was Fac Machines Accessed 51 | . 2 3 1 . . 10 . 2 4 1 20 . 8 Terminals 29 | . 2 3 . . . 4 . . . 1 13 . 6 Fabricators 3 | . . . . . . 1 . . . . . . 2 Repair Stations 2 | . . . . . . 1 . . . . 1 . . Recycling Units 5 | . . . . . . 2 . . . . 3 . . Scanalyzers . | . . . . . . . . . . . . . . Garrison Access 5 | . . . . . . 2 . . . . 3 . . Total Hacks 149 | . 7 8 1 . . 21 . 7 29 1 50 . 25 Successful 94 | . 4 4 1 . . 9 . 7 29 1 29 . 10 Failed 54 | . 3 3 . . . 12 . . . . 21 . 15 Catastrophic 12 | . 1 2 . . . 3 . . . . 2 . 4 Database Lockouts 1 | . . 1 . . . . . . . . . . . Manual 37 | . 2 3 . . . . . . . . 19 . 13 Terminals 85 | . 7 8 . . . 9 . . . 1 39 . 21 Fabricators 5 | . . . . . . 1 . . . . . . 4 Repair Stations 3 | . . . . . . 1 . . . . 2 . . Recycling Units 11 | . . . . . . 5 . . . . 6 . . Scanalyzers . | . . . . . . . . . . . . . . Garrison Access 8 | . . . . . . 5 . . . . 3 . . Terminal Hacks 71 | . 3 3 1 . . 3 . 7 29 1 18 . 6 Record 18 | . . . . . . . . 6 11 1 . . . Part Schematic 10 | . . . . . . . . . 10 . . . . Robot Schematic 5 | . . . . . . . . . 5 . . . . Prototype ID Bank 8 | . 1 1 . . . 1 . . 3 . 1 . 1 Open Door 2 | . . . 1 . . . . 1 . . . . . Level Access Points 1 | . . . . . . 1 . . . . . . . Branch Access Points 2 | . . 1 . . . . . . . . 1 . . Emergency Access Points 2 | . . . . . . . . . . . 1 . 1 Terminal Index 2 | . . . . . . . . . . . 1 . 1 Alert Level 4 | . . . . . . 1 . . . . 3 . . Unreport Threat 4 | . . . . . . . . . . . 3 . 1 Locate Traps 4 | . . . . . . . . . . . 3 . 1 Patrol Status 1 | . . . . . . . . . . . 1 . . Recall Extermination 1 | . . . . . . . . . . . 1 . . Hauler Manifests 3 | . 1 1 . . . . . . . . 1 . . Registered Components 3 | . 1 . . . . . . . . . 1 . 1 Zone Layout 1 | . . . . . . . . . . . 1 . . Fabricator Hacks 2 | . . . . . . 1 . . . . . . 1 Network Status 2 | . . . . . . 1 . . . . . . 1 Repair Station Hacks 1 | . . . . . . . . . . . 1 . . Scan Component 1 | . . . . . . . . . . . 1 . . Recycling Unit Hacks 6 | . . . . . . 3 . . . . 3 . . Report Inventory 5 | . . . . . . 2 . . . . 3 . . Retrieve Components 1 | . . . . . . 1 . . . . . . . Scanalyzer . | . . . . . . . . . . . . . . Garrison Access Hacks 5 | . . . . . . 2 . . . . 3 . . Seal Access 5 | . . . . . . 2 . . . . 3 . . Unauthorized Hacks 9 | . 1 1 . . . . . . . . 4 . 3 Terminals 8 | . 1 1 . . . . . . . . 3 . 3 Track 1 | . . . . . . . . . . . 1 . . Botnet 7 | . 1 1 . . . . . . . . 2 . 3 Fabricators . | . . . . . . . . . . . . . . Repair Stations . | . . . . . . . . . . . . . . Recycling Units 1 | . . . . . . . . . . . 1 . . Reject 1 | . . . . . . . . . . . 1 . . Scanalyzers . | . . . . . . . . . . . . . . Garrison Access . | . . . . . . . . . . . . . . Data Cores Recovered 4 | . . . . . . . . . . . 1 . 3 Used 3 | . . . . . . . . . . . . . 3 Hacking Detections 35 | . 2 2 . . . 8 . . . . 16 . 7 Full Trace Events 2 | . . 1 . . . 1 . . . . . . . Feedback Events . | . . . . . . . . . . . . . . Feedback Blocked . | . . . . . . . . . . . . . . Robot Schematics Acquired 5 | . . . . . . . . . 5 . . . . Robots Built . | . . . . . . . . . . . . . . Authchips . | . . . . . . . . . . . . . . Time . | . . . . . . . . . . . . . . Total Robot Build Rating . | . . . . . . . . . . . . . . Part Schematics Acquired 10 | . . . . . . . . . 10 . . . . Parts Built . | . . . . . . . . . . . . . . Authchips . | . . . . . . . . . . . . . . Time . | . . . . . . . . . . . . . . Total Part Build Rating . | . . . . . . . . . . . . . . Parts Repaired . | . . . . . . . . . . . . . . Time . | . . . . . . . . . . . . . . Parts Recycled . | . . . . . . . . . . . . . . Recycled Matter . | . . . . . . . . . . . . . . Retrieved Matter . | . . . . . . . . . . . . . . Retrieved Components 3 | . . . . . . 3 . . . . . . . Parts Scanalyzed . | . . . . . . . . . . . . . . Part Schematics Acquired . | . . . . . . . . . . . . . . Parts Damaged . | . . . . . . . . . . . . . . Bothacking | -11 -10 -9 -9 -7 -6 -6 -6 -6 -6 -5 -5 -5 -5 ------------ Run | Yrd Mat Mat Min Zio Pro Fac Low Low Dat Pro Fac Was Fac Used RIF Installer . | . . . . . . . . . . . . . . Robots Hacked 1 | . . . . 1 . . . . . . . . . Non-combat . | . . . . . . . . . . . . . . Combat 1 | . . . . 1 . . . . . . . . . Robot Hacks Applied 1 | . . . . 1 . . . . . . . . . parse_system 1 | . . . . 1 . . . . . . . . . Relay Couplers Released 3 | . . . . . . . . . . . 3 . . Programmers 3 | . . . . . . . . . . . 3 . . Fabnet Peak Effective % . | . . . . . . . . . . . . . . Robots Rewired . | . . . . . . . . . . . . . . Allies Hacked . | . . . . . . . . . . . . . . Hacks Repelled . | . . . . . . . . . . . . . . Allies | -11 -10 -9 -9 -7 -6 -6 -6 -6 -6 -5 -5 -5 -5 -------- Run | Yrd Mat Mat Min Zio Pro Fac Low Low Dat Pro Fac Was Fac Total Allies 3 | . . . 1 2 . . . . . . . . . Largest Group 3 | . . . 1 3 3 . . . . . . . . Highest-Rated Group 87 | . . . 31 87 87 . . . . . . . . Highest-Rated Ally 31 | . . . 31 31 31 . . . . . . . . Total Orders . | . . . . . . . . . . . . . . Ally Attacks 28 | . . . 4 . 24 . . . . . . . . Total Damage 582 | . . . 86 . 496 . . . . . . . . Kills 7 | . . . 2 . 5 . . . . . . . . Allies Corrupted . | . . . . . . . . . . . . . . Allies Melted . | . . . . . . . . . . . . . . Intel | -11 -10 -9 -9 -7 -6 -6 -6 -6 -6 -5 -5 -5 -5 ------- Run | Yrd Mat Mat Min Zio Pro Fac Low Low Dat Pro Fac Was Fac Robot Analysis Total . | . . . . . . . . . . . . . . Derelict Logs Recovered 9 | . . . 2 1 2 . . 2 . 2 . . . Drone Launches . | . . . . . . . . . . . . . . Drone Recoveries . | . . . . . . . . . . . . . . Exploration | -11 -10 -9 -9 -7 -6 -6 -6 -6 -6 -5 -5 -5 -5 ------------- Run | Yrd Mat Mat Min Zio Pro Fac Low Low Dat Pro Fac Was Fac Turns Passed 8869 | 65 814 594 596 1776 1080 1620 86 198 21 138 1125 49 707 Spaces Moved 10082 | 35 316 322 349 1162 663 1503 259 650 85 425 2691 167 1455 Core 7 | 4 2 . . . . . . . . . . . 1 Treads 316 | 31 241 . . . . 44 . . . . . . . Legs . | . . . . . . . . . . . . . . Wheels 3152 | . 73 322 349 1162 663 583 . . . . . . . Hover 281 | . . . . . . . . . . . 281 . . Flight 6326 | . . . . . . 876 259 650 85 425 2410 167 1454 Fastest Speed 21 | 50 160 135 135 150 150 25 25 25 25 25 21 26 24 Average Speed 69 | 147 179 135 135 150 150 82 25 25 25 25 26 26 26 Slowest Speed 480 | 160 480 150 150 150 150 400 25 25 25 27 120 26 200 Overloaded Moves 27 | . . . . . . . . . . . . . 27 Propulsion Burnouts . | . . . . . . . . . . . . . . Robots Hopped 35 | . . . . . . 18 . . . . 10 . 7 Cave-ins Triggered . | . . . . . . . . . . . . . . Exploration Rate (%) 60 | 4 54 48 81 87 75 35 50 81 68 74 67 78 42 Regions Visited 13 Branch Regions 7 Pre-discovered Areas 7 | . . . . 2 2 . . 2 1 . . . . Known Exits Taken 7 | . . 1 . . 1 1 1 1 1 1 . . . Unknown Exits Taken 4 | 1 1 . 1 1 . . . . . . . . . Scrap Searched 13 | . . . 2 4 1 . 3 3 . . . . . Spaces Dug 132 | . . . . . . 5 . . . 1 71 . 55 Terrain Destroyed 484 | . 25 90 11 . 23 137 . . . 1 77 . 120 Melee 116 | . . . . . . 5 . . . 1 56 . 54 Projectile 28 | . . 1 1 . 1 . . . . . 21 . 4 AOE 340 | . 25 89 10 . 22 132 . . . . . . 62 Terrain Rammed . | . . . . . . . . . . . . . . Walls Destroyed . | . . . . . . . . . . . . . . Machines Disabled . | . . . . . . . . . . . . . . Actions | -11 -10 -9 -9 -7 -6 -6 -6 -6 -6 -5 -5 -5 -5 --------- Run | Yrd Mat Mat Min Zio Pro Fac Low Low Dat Pro Fac Was Fac Total 11185 | 45 455 421 434 1201 712 1756 278 683 84 439 2904 172 1601 Wait 287 | . 42 23 28 3 12 83 19 27 . . 23 . 27 Move 10007 | 35 315 321 348 1161 662 1472 258 649 84 424 2671 166 1441 Hop 29 | . . . . . . 12 . . . . 10 . 7 Pick Up 93 | 4 8 19 12 10 2 17 . 1 . 2 11 2 5 Fast Attach 66 | 5 7 2 3 1 . 11 1 1 . . 29 1 5 Attach 60 | 1 7 5 7 2 4 22 . 1 . 1 6 . 4 Detach 31 | . 5 3 5 2 . 5 . 1 . . 6 1 3 Swap 46 | . 4 6 2 6 3 8 . 1 . . 6 . 10 Drop 82 | . 1 9 6 12 2 26 . 1 . 2 17 2 4 Fire 214 | . 62 33 23 3 15 40 . . . . 29 . 9 Melee 250 | . . . . 1 12 51 . 1 . 10 89 . 86 Ram . | . . . . . . . . . . . . . . Kick . | . . . . . . . . . . . . . . Crush 5 | . 4 . . . . 1 . . . . . . . Escape Stasis 15 | . . . . . . 8 . . . . 7 . . Rewire . | . . . . . . . . . . . . . . Trap . | . . . . . . . . . . . . . . Miscellaneous . | . . . . . . . . . . . . . . Route ------- -11/Scrapyard -10/Materials (discovered 2 exits: *Mat / [*Min]) -9/Materials (discovered 4 exits: [*Mat] / *Min x2 / *Sto) -9/Mines (discovered 2 exits: [*Mat] / *Zio) -7/Zion -6/Proximity Caves -6/Factory (discovered 5 exits: *Fac x4 / *Low) -6/Lower Caves -6/Lower Caves (discovered 2 exits: *Fac / *Dat) -6/Data Miner -5/Proximity Caves -5/Factory (discovered 3 exits: *Fac / *Upp x2) -5/Waste -5/Factory (discovered 1 exit: *Fac) History --------- Turn | Location | Event 19 | -11/Scrapyard | Discovered new exit (range 16) 66 | -11/Scrapyard | Entered Materials 320 | -10/Materials | Build established: Mutant 326 | -10/Materials | Discovered new exit (range 8) 541 | -10/Materials | Core integrity fell below 50% 566 | -10/Materials | Core integrity fell below 20% 596 | -10/Materials | Lost 4 parts (1p2n1w) 697 | -10/Materials | Discovered new exit (range 8) 880 | -10/Materials | Entered another Materials area 880 | -9/Materials | Evolved 2 slots: Propulsion x1, Utility x1 953 | -9/Materials | Identified exit to Mines 953 | -9/Materials | Identified exit to Storage 953 | -9/Materials | Central database locked down 1312 | -9/Materials | Discovered new exit (range 15) 1474 | -9/Materials | Entered Mines 1484 | -9/Mines | Joined a pair of Derelicts in attacking an 0b10 outpost 1634 | -9/Mines | Discovered new exit (range 20) 1666 | -9/Mines | Met a Derelict who couldn't figure out how to use a Trap Extractor 1674 | -9/Mines | Found Corrupted Powered Armor 1827 | -9/Mines | Learned Materials terminal intel 1836 | -9/Mines | Received a Rocket Launcher from a helpful Derelict 1992 | -9/Mines | A Derelict revealed a hidden shortcut to a safe place 2034 | -9/Mines | Met a Derelict testing a Signal Generator 2070 | -9/Mines | System corruption reached 10% 2070 | -9/Mines | Entered Zion 2070 | -7/Zion | Accompanied by 1 ally 2124 | -7/Zion | System corruption cleaned by Quarantine Array 2200 | -7/Zion | Found GAL Module 2266 | -7/Zion | Found CR-A16's Pointy Stick 2336 | -7/Zion | Learned location of Warlord (-4) 2355 | -7/Zion | Gained Derelict followers 3183 | -7/Zion | Discovered new exit (range 13) 3846 | -7/Zion | Entered Proximity Caves 3846 | -6/Proximity Caves | Accompanied by 3 allies 3847 | -6/Proximity Caves | Identified exit to Factory 4726 | -6/Proximity Caves | Lost 4 parts (2u2w) 4926 | -6/Proximity Caves | Entered Factory 4926 | -6/Factory | Evolved 6 slots: Propulsion x3, Utility x3 4963 | -6/Factory | Garrison activated, responded to threat 5093 | -6/Factory | Garrison activated, responded to threat 5157 | -6/Factory | Identified exit to Factory 5423 | -6/Factory | Destroyed 7 combat bots 5426 | -6/Factory | Lost 4 parts (2n1u1w) 5452 | -6/Factory | Build established: Derelict-Mutant 5838 | -6/Factory | Build established: Hacker-Mutant 6120 | -6/Factory | Lost 3 parts (1n2u) 6266 | -6/Factory | Spotted B-75 Beast 6276 | -6/Factory | Discovered new exit (range 11) 6279 | -6/Factory | Identified exit to Lower Caves 6314 | -6/Factory | Lost 3 parts (1p2n) 6326 | -6/Factory | Search patrols dispatched 6546 | -6/Factory | Entered Lower Caves 6584 | -6/Lower Caves | Discovered new exit (range 8) 6586 | -6/Lower Caves | Identified exit to Lower Caves 6596 | -6/Lower Caves | Encountered a Warlord checkpoint 6632 | -6/Lower Caves | Entered another Lower Caves area 6639 | -6/Lower Caves | Encountered a Warlord checkpoint 6660 | -6/Lower Caves | Discovered exit to Factory (range 10) 6763 | -6/Lower Caves | Learned Armory emergency access door positions 6763 | -6/Lower Caves | Learned Factory security intel 6763 | -6/Lower Caves | Learned Extension security intel 6772 | -6/Lower Caves | Learned Factory garrison access intel 6827 | -6/Lower Caves | Discovered new exit (range 7) 6829 | -6/Lower Caves | Identified exit to Data Miner 6830 | -6/Lower Caves | Entered Data Miner 6830 | -6/Data Miner | Discovered new exit (range 6) 6832 | -6/Data Miner | Identified exit to Proximity Caves 6835 | -6/Data Miner | Met Data Miner 6840 | -6/Data Miner | Learned location of Section 7 (-2) 6840 | -6/Data Miner | Acquired the access code to Warlord's prototype stash 6844 | -6/Data Miner | Received God Mode back door access code from Data Miner 6851 | -6/Data Miner | Entered Proximity Caves 6878 | -5/Proximity Caves | Build established: Hacker-Sprinter 6922 | -5/Proximity Caves | Attracted the attention of an 0b10 checkpoint 6927 | -5/Proximity Caves | Spotted B-75 Beast 6953 | -5/Proximity Caves | Learned Factory security intel 6985 | -5/Proximity Caves | Discovered exit to Factory (range 15) 6988 | -5/Proximity Caves | Learned location of 1 exit from Proximity Caves 6989 | -5/Proximity Caves | Entered Factory 6989 | -5/Factory | Evolved 2 slots: Power x1, Utility x1 6991 | -5/Factory | Loaded intel: 4 garrison access locations 7115 | -5/Factory | Lost 3 parts (2p1n) 7359 | -5/Factory | Lost 7 parts (2p4n1w) 7419 | -5/Factory | Identified exit to Upper Caves 7609 | -5/Factory | Spotted B-75 Beast 7817 | -5/Factory | Discovered new exit (range 4) 7889 | -5/Factory | Search patrols dispatched 8028 | -5/Factory | Build established: Sprinter 8094 | -5/Factory | Cargo convoy interrupted 8114 | -5/Factory | Manually triggered Chute Trap 8114 | -5/Factory | Sucked down chute 8114 | -5/Factory | Entered Waste 8116 | -5/Waste | Spotted C-40 Crusher 8126 | -5/Waste | Spotted C-40 Crusher 8145 | -5/Waste | Spotted C-40 Crusher 8146 | -5/Waste | Spotted C-40 Crusher 8147 | -5/Waste | Spotted C-40 Crusher 8147 | -5/Waste | Spotted C-40 Crusher 8157 | -5/Waste | Discovered new exit (range 11) 8162 | -5/Waste | Identified exit to Factory 8163 | -5/Waste | Entered Factory 8593 | -5/Factory | Discovered new exit (range 9) 8594 | -5/Factory | Identified exit to Factory 8659 | -5/Factory | Build established: Hacker-Sprinter 8763 | -5/Factory | Search patrols dispatched 8834 | -5/Factory | Cargo convoy interrupted 8837 | -5/Factory | Core integrity fell below 50% 8852 | -5/Factory | Core integrity fell below 20% 8863 | -5/Factory | Incoming assault squad redirected 8870 | -5/Factory | Destroyed by H-66 Slayer with Gauss Rifle Last Messages --------------- 08866_ Axe destroyed. 08866_ R-10 Processor collects Corrupted Lgt. Ion Engine. 08867_ Slug penetrates I-47 Archangel. 08867_ Penetrated by Slug. 08867_ Critical hit (Destroy). 08867_ Nuclear Pulse Array destroyed. 08867_ U-05 Engineer lays Concrete. 08868_ Imp. Surge Thruster destroyed. 08869_ U-05 Engineer lays Concrete. 08869_ R-10 Processor collects Corrupted Imp. Cesium-ion Thruster. 08869_ Penetrated by Slug. 08869_ R-10 Processor destroyed. 08869_ Penetrated by Slug. 08869_ Slug penetrates Wall. 08869_ Penetrated by Slug. 08869_ R-10 Processor collects Corrupted Unknown Special Weapon. 08870_ U-05 Engineer lays Concrete. Map ----- +----------------------------------------------------+ | ?????????????????????????????????????????????????? | | ?????????????????????????????????????????????????? | | ?????????????????????????????????????????????????? | | ?????????????????????????????????????????????????? | | ?????????????????????????????????????????????????? | | ?????????????????????????????????????????????????? | | ?????????????????????????????????????????????????? | | ?????????????????????????????????????????????????? | | ?????????????????????????????????????????????????? | | ?????????????????????????????????????????????????? | | ?????????????????????????????????????????????????? | | ?????????????????? ##########???????????????????? | | ????????????????"" #???????????????????? | | ????????????????? % #???????????????????? | | ????????????????"" % #???????????????????? | | ????????????????"" k #???????????????????? | | ?????????????????" +???????????????????? | | ?????????????????? #???????????????????? | | ???????????????????? #???????????????????? | | ?????????????????????# R #???????????????????? | | ?????????????????????# % #???????????????????? | | ?????????????????????# ! #???????????????????? | | ?????????????????????# =*#???????????????????? | | ?????????????????????# =[=##??????????????????? | | ?????????????????????# ==%%##############??????? | | ?????????????????????# @/^^# ! #??????? | | ????????????????????## ==^# #??????? | | ????????????????????# # =! """ #??????? | | ????????????????????# #[ """ ] #??????? | | ????????????????????# # """ #??????? | | ????????????????????# # #??????? | | ????????????????????## h%= # """ """ #??????? | | ????????????????????# =u # """ """ #??????? | | ????????############## % # """ """ #??????? | | ????????# # h * + #??????? | | ????????# """"""" # # #??????? | | ????????# ! """"""" g hp # | ####???? | | ????????# """"""" #x g i ###################?? | | ????????# """"""" =# p # #?? | | ????????# # h A# """" """" """" #?? | | ????????# """"""" # h # """" """" """" ### | | ????????# """"""" # # """" """" """" / | | ????????# """"""" # # """" """" """" # | | ??????### """"""" / + % # | | ??????# " # # + | | ??????# " # ###+#####"########### | | ??????#"""" ###### #?? #???# | | ?????##" ! ## #?? ????# | | ?????# " / # #? ????# " " " " " | | ?????##" # #??????# " " " " " | +----------------------------------------------------+ Best States ------------- Heat Dissipation 59 Energy Generation 33 Energy Capacity 310 Matter Stores 300 Matter Capacity 300 Sight Range 20 Robot Scan Range 15 Terrain Scan Range 16 Terrain Scan Density 10 Cloak Strength 4 Corruption Block 15 Armor Coverage 550 Resistance: KI 25 Resistance: TH 10 Evasion (%) 65 Melee Accuracy 14 Recoil Reduction 4 Offensive Hacking 21 Defensive Hacking 10 Authchip Count 1 Item Schematics ----------------- Combat Drone Bay | -6/Data Miner | Free Lgt. Regenerative Plating | -6/Data Miner | Free Enh. Flexi-carbon Leg | -6/Data Miner | Free Imp. Matter Compressor | -6/Data Miner | Free Kinetic Spear | -6/Data Miner | Free Myomer Leg | -6/Data Miner | Free Point Defense Array | -6/Data Miner | Free Hardcell Cannon | -6/Data Miner | Free Graphene Brace | -6/Data Miner | Free Quantum Capacitor | -6/Data Miner | Free Robot Schematics ------------------ E-15 Imp | -6/Data Miner | Free B-48 Gladiator | -6/Data Miner | Free A-15 Conveyor | -6/Data Miner | Free L-41 Fighter | -6/Data Miner | Free G-50 Soldier | -6/Data Miner | Free Fabricated ------------ Nothing Alien Tech Used ----------------- None Achievements -------------- None Challenges ------------ None Game ------ Seed ActiveMiniRailgun Manual? 0 Play Time 02:23:46 Cumulative 164.7 hours Start 2024.04.13 @ 13:46:34 End 2024.04.14 @ 16:18:06 Sessions 9 Manual Loads 0 Difficulty Rogue Special Mode None Game No. 38 Rogue 18 Adventurer 20 Explorer 0 Win Type - Total 12 Types 7/2/3/0/0/0/0/0/0 Lore% 72 Gallery% 75 Achievement% 66 Wizard Run 0 Options --------- Layout 1 ASCII 0 Keyboard 1 Movement Numpad Keybinds 0 Fullscreen 1 Font 32/Smallcaps Map View 50x35 Zoom Use 0% Tactical HUD 1 Map Filters NONE Filters NONE Steam 1 RUN: 68c9dde3-1107-4f42-ab6e-01bc146e694a